fUSD/lending_fUSD_20240322
["ID","MTS","AMOUNT","RATE_DAILY","PERIOD"]
[320030507,1711087850401,-205.17575209,0.000218,2]
[320030508,1711087850413,-205.17575209,0.000218,2]
[320030509,1711087850423,-205.17575209,0.000218,2]
[320030510,1711087850434,-205.17575209,0.000218,2]
[320030511,1711087850446,-205.17575209,0.000218,2]
[320030512,1711087850457,-205.17575209,0.000218,2]
[320030513,1711087850468,-205.17575209,0.000218,2]
[320030514,1711087850479,-205.17575209,0.000218,2]
[320030515,1711087850490,-205.17575209,0.000218,2]
[320030516,1711087850500,-205.17575209,0.000218,2]
[320030517,1711087850510,-205.17575209,0.000218,2]
[320030518,1711087850521,-205.17575209,0.000218,2]
[320030519,1711087850533,-205.17575209,0.000218,2]
[320030520,1711087850543,-205.17575209,0.000218,2]
[320030521,1711087850554,-205.17575209,0.000218,2]
[320030522,1711087850564,-205.17575209,0.000218,2]
[320030523,1711087850575,-180.10302652,0.000218,2]
[320030524,1711087850590,-25.07272557,0.000218,2]
[320030525,1711087850601,-205.17575209,0.000218,2]
[320030526,1711087850611,-205.17575209,0.000218,2]
[320030527,1711087850622,-205.17575209,0.000218,2]
[320030528,1711087850633,-150.47302328,0.000218,2]
[320030529,1711087850646,-54.70272881,0.000218,2]
[320030530,1711087850656,-205.17575209,0.000218,2]
[320030531,1711087850666,-98.66890559,0.000218,2]
[320030532,1711087850698,188.2850519,0.00012479,2]
[320030533,1711087850792,178.66401072,0.00012479,2]
[320030534,1711087850997,948.79091697,0.00011855,2]
[320030536,1711087898378,948.79091697,0.00011262,2]
[320030537,1711087910796,861.78243614,0.00011855,2]
[320030538,1711087916364,287.02996386,0.00011262,2]
[320030539,1711087924740,861.78243614,0.00011855,2]
[320030540,1711087942896,861.78243614,0.00011855,2]
[320030541,1711087958730,861.78243614,0.00011855,2]
[320030542,1711087976731,861.78243614,0.00011855,2]
[320030543,1711087998727,774.06697839,0.00011855,2]
[320030631,1711088524735,-800.0,0.00024,25]
[320030632,1711088524760,-545.84052218,0.00024,15]
[320030633,1711088524787,-142385.31837341,0.00025,30]
[320030634,1711088524810,-1319.47162224,0.00025,30]
[320030635,1711088524861,-1200.0,0.00026,27]
[320030636,1711088524887,-1200.0,0.00027,28]
[320030637,1711088524911,-436.0,0.00027,15]
[320030638,1711088524938,-436.0,0.000275,16]
[320030639,1711088524961,-208.0,0.0002771,18]
[320030640,1711088524987,-436.0,0.00028,16]
[320030641,1711088525013,-1200.0,0.00028,29]
[320030642,1711088525038,-436.0,0.000285,17]
[320030643,1711088525063,-1200.0,0.00029,30]
[320030644,1711088525088,-1115.57425602,0.00029,30]
[320030645,1711088525111,-436.0,0.00029,17]
[320030646,1711088525138,-436.0,0.000295,18]
[320030647,1711088525161,-1540.86770931,0.00029529,16]
[320030648,1711088525186,-208.0,0.0002984,22]
[320030649,1711088525214,-714.08515225,0.0003,30]
[320030650,1711088525240,-1200.0,0.0003,31]
[320030651,1711088525264,-436.0,0.0003,18]
[320030652,1711088525290,-240.89251014,0.000305,30]
[320030653,1711088525314,-436.0,0.000305,19]
[320030654,1711088525339,-874.48495457,0.000309,30]
[320030655,1711088525367,-1200.0,0.00031,32]
[320030656,1711088525395,-497.166405,0.00031,19]
[320030657,1711088525422,-160.0,0.00031723,120]
[320030658,1711088525457,-1540.86770931,0.00031844,19]
[320030659,1711088525484,-356.0,0.0003198,26]
[320030660,1711088525509,-1200.0,0.00032,33]
[320030661,1711088525535,-150.0,0.00032877,30]
[320030662,1711088525559,-150.0,0.00032877,30]
[320030663,1711088525583,-150.0,0.00032877,30]
[320030664,1711088525610,-150.0,0.00032877,30]
[320030665,1711088525643,-150.0,0.00032877,30]
[320030666,1711088525669,-150.0,0.00032877,30]
[320030667,1711088525695,-150.0,0.00032877,30]
[320030668,1711088525720,-150.0,0.00032877,30]
[320030669,1711088525751,-150.0,0.00032877,30]
[320030670,1711088525778,-150.0,0.00032877,30]
[320030671,1711088525804,-150.0,0.00032877,30]
[320030672,1711088525829,-150.0,0.00032877,30]
[320030673,1711088525855,-150.0,0.00032877,30]
[320030674,1711088525886,-150.0,0.00032877,30]
[320030675,1711088525910,-150.0,0.00032877,30]
[320030676,1711088525934,-150.0,0.00032877,30]
[320030677,1711088526235,-150.0,0.00032877,30]
[320030678,1711088526260,-150.0,0.00032877,30]
[320030679,1711088526283,-150.0,0.00032877,30]
[320030680,1711088526306,-150.0,0.00032877,30]
[320030681,1711088526329,-150.0,0.00032877,30]
[320030682,1711088526352,-150.0,0.00032877,30]
[320030683,1711088526376,-150.0,0.00032877,30]
[320030684,1711088526399,-150.0,0.00032877,30]
[320030685,1711088526422,-150.0,0.00032877,30]
[320030686,1711088526445,-150.0,0.00032877,30]
[320030687,1711088526468,-12956.22439815,0.000329,30]
[320030688,1711088526490,-1200.0,0.00033,34]
[320030689,1711088526518,-150.0,0.00033499,30]
[320030690,1711088526542,-150.0,0.00033499,30]
[320030691,1711088526568,-150.0,0.00033499,30]
[320030692,1711088526595,-150.0,0.00033499,30]
[320030693,1711088526620,-150.0,0.00033499,30]
[320030694,1711088526645,-150.0,0.00033499,30]
[320030695,1711088526669,-150.0,0.00033499,30]
[320030696,1711088526692,-150.0,0.00033499,30]
[320030697,1711088526719,-150.0,0.00033499,30]
[320030698,1711088526744,-150.0,0.00033499,30]
[320030699,1711088526768,-150.0,0.00033499,30]
[320030700,1711088526792,-150.0,0.00033499,30]
[320030701,1711088526816,-150.0,0.00033499,30]
[320030702,1711088526841,-150.0,0.00033499,30]
[320030703,1711088526864,-150.0,0.00033499,30]
[320030704,1711088526889,-150.0,0.00033499,30]
[320030705,1711088526911,-150.0,0.00033499,30]
[320030706,1711088526934,-150.0,0.00033499,30]
[320030707,1711088526957,-150.0,0.00033499,30]
[320030708,1711088526980,-150.0,0.00033499,30]
[320030709,1711088527003,-150.0,0.00033499,30]
[320030710,1711088527026,-150.0,0.00033499,30]
[320030711,1711088527049,-150.0,0.00033499,30]
[320030712,1711088527071,-150.0,0.00033499,30]
[320030713,1711088527097,-150.0,0.00033499,30]
[320030714,1711088527124,-1200.0,0.00034,35]
[320030715,1711088527148,-1540.86770931,0.00034158,23]
[320030716,1711088527176,-8322.47900231,0.00034575,28]
[320030717,1711088527200,-150.0,0.00034751,120]
[320030718,1711088527227,-8322.47900226,0.00036022,34]
[320030719,1711088527252,-151.032214,0.00036498,17]
[320030720,1711088527280,-308.25109614,0.00037,37]
[320030721,1711088527303,-2154.28,0.00037,15]
[320030722,1711088527327,-8322.47900226,0.00037469,39]
[320030723,1711088527351,-151.032214,0.00037498,18]
[320030724,1711088527375,-150.0,0.00037799,30]
[320030725,1711088527397,-150.0,0.00037799,30]
[320030726,1711088527420,-150.0,0.00037799,30]
[320030727,1711088527441,-150.0,0.00037799,30]
[320030728,1711088527464,-150.0,0.00037799,30]
[320030729,1711088527491,-150.0,0.00037799,30]
[320030730,1711088527514,-150.0,0.00037799,30]
[320030731,1711088527536,-150.0,0.00037799,30]
[320030732,1711088527559,-150.0,0.00037799,30]
[320030733,1711088527582,-150.0,0.00037799,30]
[320030734,1711088527607,-150.0,0.00037799,30]
[320030735,1711088527632,-150.0,0.00037799,30]
[320030736,1711088527655,-150.0,0.00037799,30]
[320030737,1711088527679,-150.0,0.00037799,30]
[320030738,1711088527702,-150.0,0.00037799,30]
[320030739,1711088527725,-150.0,0.00037799,30]
[320030740,1711088527748,-150.0,0.00037799,30]
[320030741,1711088527772,-150.0,0.00037799,30]
[320030742,1711088527794,-150.0,0.00037799,30]
[320030743,1711088527818,-150.0,0.00037799,30]
[320030744,1711088527841,-150.0,0.00037799,30]
[320030745,1711088527865,-150.0,0.00037799,30]
[320030746,1711088527889,-150.0,0.00037799,30]
[320030747,1711088527911,-150.0,0.00037799,30]
[320030748,1711088527934,-150.0,0.00037799,30]
[320030749,1711088527961,-3954.95588,0.00038,40]
[320030750,1711088527983,-1503.12898005,0.00038311,120]
[320030751,1711088528007,-151.032214,0.00038498,19]
[320030752,1711088528030,-4462.0,0.000386,15]
[320030753,1711088528055,-20000.0,0.000388,60]
[320030754,1711088528077,-150.0,0.00038899,30]
[320030755,1711088528101,-150.0,0.00038899,30]
[320030756,1711088528125,-150.0,0.00038899,30]
[320030757,1711088528147,-150.0,0.00038899,30]
[320030758,1711088528170,-150.0,0.00038899,30]
[320030759,1711088528193,-150.0,0.00038899,30]
[320030760,1711088528216,-150.0,0.00038899,30]
[320030761,1711088528239,-150.0,0.00038899,30]
[320030762,1711088528264,-150.0,0.00038899,30]
[320030763,1711088528288,-150.0,0.00038899,30]
[320030764,1711088528313,-150.0,0.00038899,30]
[320030765,1711088528335,-150.0,0.00038899,30]
[320030766,1711088528357,-150.0,0.00038899,30]
[320030767,1711088528381,-150.0,0.00038899,30]
[320030768,1711088528404,-150.0,0.00038899,30]
[320030769,1711088528427,-150.0,0.00038899,30]
[320030770,1711088528449,-150.0,0.00038899,30]
[320030771,1711088528471,-150.0,0.00038899,30]
[320030772,1711088528493,-150.0,0.00038899,30]
[320030773,1711088528515,-150.0,0.00038899,30]
[320030774,1711088528537,-150.0,0.00038899,30]
[320030775,1711088528559,-150.0,0.00038899,30]
[320030776,1711088528581,-150.0,0.00038899,30]
[320030777,1711088528608,-150.0,0.00038899,30]
[320030778,1711088528814,-2919.08203407,0.000389,15]
[320030779,1711088528840,-8322.47900226,0.00038917,44]
[320030780,1711088528864,-350.0,0.00039,41]
[320030781,1711088528892,-14717.740798,0.00039,30]
[320030782,1711088528919,-151.032214,0.00039498,20]
[320030783,1711088528943,-16547.75257471,0.0004,90]
[320030784,1711088528968,-169.68579162,0.0004,120]
[320030785,1711088528990,-331.82530306,0.0004,30]
[320030786,1711088529012,-9995.0,0.0004,60]
[320030787,1711088529034,-10241.0,0.0004,30]
[320030788,1711088529057,-175.36692379,0.0004,30]
[320030789,1711088529078,-4825.0,0.0004,120]
[320030790,1711088529100,-462.1900742,0.0004,120]
[320030791,1711088529123,-250.0,0.0004,30]
[320030792,1711088529145,-5000.0,0.0004,30]
[320030793,1711088529166,-242.36,0.0004,50]
[320030794,1711088529188,-307.37758112,0.0004,120]
[320030795,1711088529210,-200.0,0.0004,60]
[320030796,1711088529232,-154.27708642,0.00040023,30]
[320030797,1711088529254,-583.16461862,0.0004005,30]
[320030798,1711088529276,-165.75333616,0.00040165,30]
[320030799,1711088529298,-583.16461862,0.0004022,30]
[320030800,1711088529320,-8322.47900226,0.00040364,49]
[320030801,1711088529343,-154.27708642,0.00040424,30]
[320030802,1711088529365,-1182.05904255,0.00040468,30]
[320030803,1711088529389,-1182.05904255,0.00040475,30]
[320030804,1711088529413,-151.032214,0.00040498,21]
[320030805,1711088529435,-250.0,0.000405,30]
[320030806,1711088529457,-1182.05904255,0.00040517,30]
[320030807,1711088529481,-583.16461862,0.00040609,30]
[320030808,1711088529505,-154.27708642,0.000409,30]
[320030809,1711088529527,-877.5646234,0.0004099,22]
[320030810,1711088529549,-14293.18,0.00041,120]
[320030811,1711088529570,-20000.0,0.00041,120]
[320030812,1711088529592,-20000.0,0.00041,120]
[320030813,1711088529617,-20000.0,0.00041,120]
[320030814,1711088529641,-350.0,0.00041,41]
[320030815,1711088529663,-250.0,0.00041,30]
[320030816,1711088529688,-500.0,0.00041,55]
[320030817,1711088529710,-9999.0,0.00041,90]
[320030818,1711088529732,-9999.0,0.00041,90]
[320030819,1711088529755,-9999.0,0.00041,90]
[320030820,1711088529777,-9999.0,0.00041,90]
[320030821,1711088529799,-9999.0,0.00041,90]
[320030822,1711088529822,-9999.0,0.00041,90]
[320030823,1711088529844,-9999.0,0.00041,90]
[320030824,1711088529867,-9323.42,0.00041,90]
[320030825,1711088529891,-1182.05904255,0.00041009,30]
[320030826,1711088529917,-2000.0,0.00041095,120]
[320030827,1711088529948,-511.06096335,0.00041095,120]
[320030828,1711088529976,-2246.92779349,0.00041095,30]
[320030829,1711088530033,-4000.0,0.00041096,30]
[320030830,1711088530056,-2111.0,0.00041096,30]
[320030831,1711088530081,-232.83814637,0.00041108,30]
[320030832,1711088530104,-527.64194518,0.00041136,30]
[320030833,1711088530128,-1000.0,0.00041164,30]
[320030834,1711088530150,-500.0,0.00041164,30]
[320030835,1711088530173,-527.64194518,0.00041182,30]
[320030836,1711088530196,-1182.05904255,0.0004119,30]
[320030837,1711088530219,-527.64194518,0.00041227,30]
[320030838,1711088530241,-232.83814637,0.00041238,30]
[320030839,1711088530263,-154.27708642,0.00041267,30]
[320030840,1711088530285,-527.64194518,0.00041273,30]
[320030841,1711088530308,-527.64194518,0.00041318,30]
[320030842,1711088530330,-527.64194518,0.00041364,30]
[320030843,1711088530353,-2000.0,0.00041369,120]
[320030844,1711088530405,-158.20826734,0.00041385,30]
[320030845,1711088530428,-527.64194518,0.00041409,30]
[320030846,1711088530451,-1000.0,0.00041438,30]
[320030847,1711088530475,-527.64194518,0.00041455,30]
[320030848,1711088530500,-151.032215,0.00041498,22]
[320030849,1711088530523,-268.11,0.000415,71]
[320030850,1711088530546,-250.0,0.000415,30]
[320030851,1711088530570,-527.64194518,0.000415,30]
[320030852,1711088530595,-232.83814637,0.00041531,30]
[320030853,1711088530618,-527.64194518,0.00041545,30]
[320030854,1711088530646,-527.64194518,0.00041591,30]
[320030855,1711088530674,-1182.05904255,0.00041622,30]
[320030856,1711088530705,-527.64194518,0.00041636,30]
[320030857,1711088530728,-435.70062455,0.00041643,120]
[320030858,1711088530771,-527.64194518,0.00041682,30]
[320030859,1711088530794,-1000.0,0.00041712,30]
[320030860,1711088530817,-500.0,0.00041712,30]
[320030861,1711088530840,-527.64194518,0.00041727,30]
[320030862,1711088530863,-232.83814637,0.00041745,30]
[320030863,1711088530889,-527.64194518,0.00041773,30]
[320030864,1711088530912,-1182.05904255,0.00041778,30]
[320030865,1711088530935,-8322.47900226,0.00041811,54]
[320030866,1711088530957,-583.16461862,0.00041813,30]
[320030867,1711088530980,-527.64194518,0.00041818,30]
[320030868,1711088531002,-527.64194518,0.00041864,30]
[320030869,1711088531024,-1182.05904255,0.00041868,30]
[320030870,1711088531046,-2718.0918722,0.00041905,20]
[320030871,1711088531067,-2551.58805725,0.00041909,20]
[320030872,1711088531089,-527.64194518,0.00041909,30]
[320030873,1711088531111,-2630.33942246,0.00041912,20]
[320030874,1711088531135,-2909.40619191,0.00041914,20]
[320030875,1711088531156,-1382.90640108,0.00041914,20]
[320030876,1711088531190,-9567.55216918,0.0004192,20]
[320030877,1711088531213,-2727.71311101,0.00041924,20]
[320030878,1711088531405,-2640.62240349,0.00041927,20]
[320030879,1711088531428,-180.52425276,0.00041928,20]
[320030880,1711088531451,-2770.87579375,0.0004193,20]
[320030881,1711088531473,-2862.96974553,0.00041931,20]
[320030882,1711088531495,-2262.99181785,0.00041934,20]
[320030883,1711088531517,-459.08207696,0.00041934,20]
[320030884,1711088531540,-2539.62956637,0.00041935,20]
[320030885,1711088531561,-9621.04540656,0.00041935,20]
[320030886,1711088531584,-434.29076867,0.00041939,20]
[320030887,1711088531608,-1890.91476611,0.0004194,20]
[320030888,1711088531635,-177.12007209,0.00041945,20]
[320030889,1711088531659,-2700.87520786,0.00041947,20]
[320030890,1711088531682,-2667.24053496,0.00041952,20]
[320030891,1711088531707,-2717.69808138,0.00041952,20]
[320030892,1711088531730,-9630.72078721,0.00041952,20]
[320030893,1711088531751,-527.64194518,0.00041955,30]
[320030894,1711088531776,-2633.27019113,0.0004196,20]
[320030895,1711088531799,-2711.96036063,0.0004196,20]
[320030896,1711088531822,-2669.78822008,0.00041962,20]
[320030897,1711088531845,-9715.6994243,0.00041962,20]
[320030898,1711088531868,-2597.51259908,0.00041964,20]
[320030899,1711088531894,-583.16461862,0.00041965,30]
[320030900,1711088531917,-2631.40509691,0.00041966,20]
[320030901,1711088531939,-379.85124846,0.00041966,20]
[320030902,1711088531962,-9598.06686861,0.00041973,20]
[320030903,1711088531985,-429.97208234,0.00041975,20]
[320030904,1711088532008,-2427.23457191,0.00041976,20]
[320030905,1711088532031,-2725.95366558,0.00041981,20]
[320030906,1711088532054,-2461.376791,0.00041981,20]
[320030907,1711088532076,-2627.05504334,0.00041985,20]
[320030908,1711088532099,-2763.67189857,0.00041985,20]
[320030909,1711088532122,-1000.0,0.00041986,30]
[320030910,1711088532145,-2794.57185364,0.00041988,20]
[320030911,1711088532167,-384.2911456,0.00041988,20]
[320030912,1711088532189,-2764.40142303,0.00041989,20]
[320030913,1711088532212,-1182.05904255,0.0004199,30]
[320030914,1711088532233,-2716.67436239,0.00041991,20]
[320030915,1711088532256,-2795.61779053,0.00041993,20]
[320030916,1711088532278,-9702.88332428,0.00041993,20]
[320030917,1711088532301,-2697.88157562,0.00041994,20]
[320030918,1711088532324,-2040.2249699,0.00041994,20]
[320030919,1711088532346,-2705.65177519,0.00041996,20]
[320030920,1711088532368,-2120.9395336,0.00041997,20]
[320030921,1711088532395,-9993.0,0.00042,60]
[320030922,1711088532419,-2000.0,0.00042,60]
[320030923,1711088532441,-5000.000001,0.00042,120]
[320030924,1711088532463,-250.0,0.00042,30]
[320030925,1711088532486,-800.0,0.00042,60]
[320030926,1711088532508,-527.64194518,0.00042,30]
[320030927,1711088532530,-527.64194518,0.00042045,30]
[320030928,1711088532552,-1182.05904255,0.00042061,30]
[320030929,1711088532575,-527.64194518,0.00042091,30]
[320030930,1711088532601,-154.62857146,0.0004211,30]
[320030931,1711088532628,-527.64194518,0.00042136,30]
[320030932,1711088532651,-527.64194518,0.00042182,30]
[320030933,1711088532683,-527.64194518,0.00042227,30]
[320030934,1711088532706,-1000.0,0.0004226,30]
[320030935,1711088532728,-500.0,0.0004226,30]
[320030936,1711088532751,-1500.0,0.00042268,30]
[320030937,1711088532775,-527.64194518,0.00042273,30]
[320030938,1711088532798,-583.16461862,0.00042318,30]
[320030939,1711088532820,-527.64194518,0.00042318,30]
[320030940,1711088532844,-199.706705,0.00042323,30]
[320030941,1711088532867,-180.420196,0.00042323,30]
[320030942,1711088532894,-193.917085,0.00042323,30]
[320030943,1711088532917,-168.366942,0.00042323,30]
[320030944,1711088532939,-583.16461862,0.00042336,30]
[320030945,1711088532962,-527.64194518,0.00042364,30]
[320030946,1711088532985,-152.34598263,0.00042398,43]
[320030947,1711088533009,-527.64194518,0.00042409,30]
[320030948,1711088533032,-4999.999999,0.00042438,120]
[320030949,1711088533054,-527.64194518,0.00042455,30]
[320030950,1711088533086,-151.032215,0.00042498,23]
[320030951,1711088533108,-250.0,0.000425,30]
[320030952,1711088533138,-527.64194518,0.000425,30]
[320030953,1711088533162,-29412.771387,0.000425,30]
[320030954,1711088533185,-154.27708642,0.00042504,30]
[320030955,1711088533211,-1000.0,0.00042534,30]
[320030956,1711088533233,-527.64194518,0.00042545,30]
[320030957,1711088533256,-527.64194518,0.00042591,30]
[320030958,1711088533283,-527.64194518,0.00042636,30]
[320030959,1711088533306,-232.83814637,0.00042678,30]
[320030960,1711088533331,-527.64194518,0.00042682,30]
[320030961,1711088533355,-4377.74273318,0.00042717,17]
[320030962,1711088533379,-527.64194518,0.00042727,30]
[320030963,1711088533408,-1025.46101793,0.0004275,30]
[320030964,1711088533435,-150.0,0.0004275,30]
[320030965,1711088533458,-527.64194518,0.00042773,30]
[320030966,1711088533480,-1000.0,0.00042808,30]
[320030967,1711088533503,-500.0,0.00042808,30]
[320030968,1711088533525,-527.64194518,0.00042818,30]
[320030969,1711088533548,-527.64194518,0.00042864,30]
[320030970,1711088533571,-527.64194518,0.00042909,30]
[320030971,1711088533597,-1182.05904272,0.00042913,30]
[320030972,1711088533619,-527.64194518,0.00042955,30]
[320030973,1711088533642,-300.0,0.00043,43]
[320030974,1711088533663,-2000.0,0.00043,64]
[320030975,1711088533686,-890.0,0.00043,15]
[320030976,1711088533710,-1000.0,0.00043,120]
[320030977,1711088533732,-250.0,0.00043,60]
[320030978,1711088533756,-2023.0,0.00043,120]
[320030979,1711088533779,-1000.0,0.00043,65]
[320030980,1711088533801,-185937.98529016,0.00043,30]
[320030981,1711088533987,-18000.0,0.00043,120]
[320030982,1711088534012,-752.99,0.00043,120]
[320030983,1711088534034,-527.64194518,0.00043,30]
[320030984,1711088534064,-527.64194518,0.00043045,30]
[320030985,1711088534087,-154.27708652,0.00043067,30]
[320030986,1711088534109,-1000.0,0.00043082,30]
[320030987,1711088534132,-527.64194518,0.00043091,30]
[320030988,1711088534153,-583.16461878,0.00043112,30]
[320030989,1711088534176,-18000.0,0.0004312,120]
[320030990,1711088534198,-527.64194518,0.00043136,30]
[320030991,1711088534219,-527.64194518,0.00043182,30]
[320030992,1711088534243,-151.032215,0.00043198,24]
[320030993,1711088534265,-154.6285715,0.00043226,30]
[320030994,1711088534287,-527.64194518,0.00043227,30]
[320030995,1711088534310,-18000.0,0.0004324,120]
[320030996,1711088534332,-8322.47900226,0.00043258,60]
[320030997,1711088534354,-527.64194518,0.00043273,30]
[320030998,1711088534383,-527.64194518,0.00043318,30]
[320030999,1711088534407,-1000.0,0.00043356,30]
[320031000,1711088534430,-618.94463025,0.00043356,30]
[320031001,1711088534452,-527.64194518,0.00043364,30]
[320031002,1711088534474,-152.34598263,0.00043398,47]
[320031003,1711088534496,-527.64194518,0.00043409,30]
[320031004,1711088534519,-527.64194518,0.00043455,30]
[320031005,1711088534543,-278.39510165,0.00043481,35]
[320031006,1711088534567,-234.032207,0.00043498,24]
[320031007,1711088534591,-2009.9,0.000435,30]
[320031008,1711088534617,-2110.0,0.000435,15]
[320031009,1711088534641,-7825.93345782,0.000435,120]
[320031010,1711088534666,-20000.0,0.000435,120]
[320031011,1711088534689,-20000.0,0.000435,120]
[320031012,1711088534712,-20000.0,0.000435,120]
[320031013,1711088534735,-20000.0,0.000435,120]
[320031014,1711088534757,-20000.0,0.000435,120]
[320031015,1711088534779,-20000.0,0.000435,120]
[320031016,1711088534802,-20000.0,0.000435,120]
[320031017,1711088534824,-20000.0,0.000435,120]
[320031018,1711088534846,-250.0,0.000435,60]
[320031019,1711088534868,-527.64194518,0.000435,30]
[320031020,1711088534893,-527.64194518,0.00043545,30]
[320031021,1711088534920,-527.64194518,0.00043591,30]
[320031022,1711088534942,-1000.0,0.0004363,30]
[320031023,1711088534964,-527.64194518,0.00043636,30]
[320031024,1711088534986,-157.87854598,0.00043645,20]
[320031025,1711088535008,-527.64194518,0.00043682,30]
[320031026,1711088535030,-160.49370812,0.000437,33]
[320031027,1711088535053,-507.91361745,0.000437,120]
[320031028,1711088535075,-527.64194518,0.00043727,30]
[320031029,1711088535097,-527.64194518,0.00043773,30]
[320031030,1711088535121,-345.032207,0.00043798,24]
[320031031,1711088535144,-232.83814637,0.00043798,30]
[320031032,1711088535167,-39667.5750405,0.000438,60]
[320031033,1711088535189,-15000.0,0.000438,120]
[320031034,1711088535211,-40000.0,0.000438,70]
[320031035,1711088535234,-15000.0,0.000438,120]
[320031036,1711088535259,-232.83814663,0.00043813,30]
[320031037,1711088535282,-527.64194518,0.00043818,30]
[320031038,1711088535305,-1140.32,0.00043835,120]
[320031039,1711088535328,-1140.32,0.00043835,120]
[320031040,1711088535350,-1140.32,0.00043835,120]
[320031041,1711088535372,-1140.32,0.00043835,120]
[320031042,1711088535396,-1140.32,0.00043835,120]
[320031043,1711088535418,-1140.32,0.00043835,120]
[320031044,1711088535441,-1140.32,0.00043835,120]
[320031045,1711088535464,-1140.32,0.00043835,120]
[320031046,1711088535486,-1140.32,0.00043835,120]
[320031047,1711088535510,-1140.32,0.00043835,120]
[320031048,1711088535533,-1140.32,0.00043835,120]
[320031049,1711088535562,-527.64194518,0.00043864,30]
[320031050,1711088535585,-222.11744845,0.000439,30]
[320031051,1711088535609,-1000.0,0.00043904,30]
[320031052,1711088535634,-527.64194518,0.00043909,30]
[320031053,1711088535657,-527.64194518,0.00043955,30]
[320031054,1711088535680,-2000.0,0.00044,65]
[320031055,1711088535703,-2000.0,0.00044,60]
[320031056,1711088535725,-653185.66604397,0.00044,120]
[320031057,1711088542189,-2000000.0,0.00044,120]
[320031058,1711088545689,-154.27708642,0.0004125,30]
[320031059,1711088545781,-165.75333614,0.00042236,30]
[320031060,1711088545855,-527373.24244168,0.00044,120]
[320031061,1711088545879,-2000.0,0.00044,30]
[320031062,1711088545904,-1500.0,0.00044,30]
[320031063,1711088545927,-2110.0,0.00044,15]
[320031064,1711088545950,-1003.0,0.00044,120]
[320031065,1711088545973,-12314.82854252,0.00044,15]
[320031066,1711088545996,-250.0,0.00044,60]
[320031067,1711088546018,-3000.0,0.00044,120]
[320031068,1711088546041,-1100.0,0.00044,80]
[320031069,1711088546065,-527.64194518,0.00044,30]
[320031070,1711088546089,-253.26,0.00044,120]
[320031071,1711088546112,-527.64194518,0.00044045,30]
[320031072,1711088546139,-527.64194518,0.00044091,30]
[320031073,1711088546162,-209.38671803,0.000441,120]
[320031074,1711088546186,-1140.32,0.00044109,120]
[320031075,1711088546212,-527.64194518,0.00044136,30]
[320031076,1711088546234,-1000.0,0.00044178,30]
[320031077,1711088546256,-527.64194518,0.00044182,30]
[320031078,1711088546280,-234.032207,0.00044198,25]
[320031079,1711088546302,-527.64194518,0.00044227,30]
[320031080,1711088546325,-527.64194518,0.00044273,30]
[320031081,1711088546348,-527.64194518,0.00044318,30]
[320031082,1711088546371,-527.64194518,0.00044364,30]
[320031083,1711088546394,-1140.32,0.00044383,120]
[320031084,1711088546420,-10000.0,0.000444,30]
[320031085,1711088546442,-527.64194518,0.00044409,30]
[320031086,1711088546465,-1429775.16021641,0.0004444,120]
[320031087,1711088549058,-154.27708642,0.00042023,30]
[320031088,1711088549092,-154.27708642,0.00042397,30]
[320031089,1711088549137,-154.27708642,0.0004287,30]
[320031090,1711088549197,-1113457.08189193,0.0004444,120]
[320031091,1711088549220,-155.071,0.0004444,30]
[320031092,1711088549243,-1000.0,0.00044452,30]
[320031093,1711088549267,-527.64194518,0.00044455,30]
[320031094,1711088549292,-345.032207,0.00044498,25]